Cogmind - Beta 15 @@@ ROGUE MODE // 2025.09.16 @ 13:26:11 Player: 1R0 Result: Destroyed by U9-6UI(R) with Subdweller Beam Cannon Performance ------------- Evolutions (0) 0 Regions Visited (2) 400 Robots Destroyed (10) 50 Value Destroyed (262) 262 Prototype IDs (0) 0 Alien Tech Used (0) 0 Bonus (0) 0 TOTAL SCORE: 712 Bonus ------- None Cogmind --------- Core Integrity 0/250 Matter 238/300 Energy 100/100 System Corruption 0% Temperature Cool (9) Movement Walking (610) Ox7 Location -10/Subcaves Parts ------- > --- POWER (1) -------- (None) > --- PROPULSION (2) --- Aluminum Leg > --- UTILITY (2) ------ Huge Storage Unit > --- WEAPON (2) ------- (None) > --- INVENTORY (25) --- Light Ion Engine Subdweller Power Source Subdweller Power Source Aluminum Leg Flight Unit Subdweller Machine Gun Peak State ------------ > --- POWER ------------ Ion Engine > --- PROPULSION ------- Light Treads Light Treads > --- UTILITY ---------- Heat Sink Huge Storage Unit > --- WEAPON ----------- Medium Laser Small Laser > --- INVENTORY -------- Light Ion Engine Aluminum Leg Aluminum Leg Flight Unit EM Pulse Gun [Rating: 7] Favorites ----------- Power Ion Engine Engine Ion Engine Propulsion Light Treads Treads Light Treads Leg Aluminum Leg Utility Huge Storage Unit Device Heat Sink Storage Huge Storage Unit Weapon Medium Laser Energy Gun Medium Laser Ballistic Gun Light Assault Rifle Build | -11 -10 -10 ------- Run | Yrd Mat Sub Slots Evolved . | . . . Power . | . . . Propulsion . | . . . Utility . | . . . Weapon . | . . . Parts Attached 12 | 6 2 4 Power 1 | 1 . . Engine 1 | 1 . . Core . | . . . Reactor . | . . . Propulsion 4 | 2 . 2 Treads 2 | 2 . . Leg 2 | . . 2 Wheel . | . . . Hover . | . . . Flight . | . . . Utility 3 | 1 2 . Device 1 | . 1 . Storage 2 | 1 1 . Processor . | . . . Hackware . | . . . Protection . | . . . Artifact . | . . . Weapon 4 | 2 . 2 Energy Gun 3 | 2 . 1 Energy Cannon . | . . . Ballistic Gun 1 | . . 1 Ballistic Cannon . | . . . Launcher . | . . . Special Weapon . | . . . Impact Weapon . | . . . Slashing Weapon . | . . . Piercing Weapon . | . . . Special Melee Weapon . | . . . Unidentified Prototypes . | . . . Parts Lost 9 | . 1 8 Power 1 | . . 1 Propulsion 3 | . . 3 Utility 1 | . . 1 Weapon 4 | . 1 3 Highest Loss Streak 7 | . 1 7 To Critical Strikes . | . . . Average Backups 5 | 2 5 6 Power 1 | . 1 1 Propulsion 3 | 1 3 3 Utility . | . . . Weapon 1 | . 1 1 Tool/Special . | . . . Unused Backups 5 | . . 5 Power 2 | . . 2 Propulsion 2 | . . 2 Utility . | . . . Weapon 1 | . . 1 Tool/Special . | . . . Average Slot Usage (%) 88 | . 91 87 Engine 13 | . 14 13 Treads 26 | . 28 25 Leg 1 | . . 2 Device 10 | . 7 12 Storage 14 | . 14 14 Energy Gun 17 | . 26 13 Ballistic Gun 3 | . . 4 Peak Build Rating 7 | 6 7 7 Average Rating 6 | 4 6 6 On Entrance 4 | . 6 6 Naked Turns . | . . . Heaviest Build 89 | 13 89 89 Greatest Support 40 | 40 40 40 Greatest Overweight (x) 7 | . 2 7 Average Overweight (x) 1 | . 1 2 Largest Inventory Capacity 25 | 8 25 25 Average Capacity 22 | 6 23 25 Most Carried 7 | 5 7 7 Average Carried 6 | 3 5 6 Final Capacity 25 | 8 25 25 Final Carried 7 | 4 7 6 Class Distribution -------------------- 100% | Mutant Dominant Class ---------------- Mutant | -10/Materials Mutant | -10/Subcaves Resources | -11 -10 -10 ----------- Run | Yrd Mat Sub Matter Collected 220 | . 123 97 Remotely . | . . . Salvage Created 329 | . 232 97 Parts 19 | . 10 9 Haulers Intercepted . | . . . Recyclers Shooed . | . . . Parts Field Recycled . | . . . Retrieved Matter . | . . . Parts Self-Destructed . | . . . Prevented . | . . . Kills | -11 -10 -10 ------- Run | Yrd Mat Sub Combat Hostiles Destroyed 9 | . 7 2 Guns 9 | . 7 2 Classes Destroyed 4 | . 3 1 Watcher 1 | . 1 . Swarmer 3 | . 3 . Grunt 4 | . 4 . Subdweller 2 | . . 2 Best Kill Streak 6 | . 6 1 Combat Bots Only 6 | . 6 1 Max Kills in Single Turn 1 | . 1 1 Gunslinging . | . . . Exploded . | . . . Melee . | . . . Uniques/NPCs Destroyed . | . . . Combat | -11 -10 -10 -------- Run | Yrd Mat Sub Hostile Shots Fired 90 | . 37 53 Missed 26 | . 11 15 Hits 64 | . 26 38 Projectile 64 | . 26 38 Critical Strikes 2 | . . 2 Damage Taken 1101 | . 243 858 Core 261 | . 38 223 Absorbed by Shields . | . . . Core Remaining (%) 100 | 100 . . Volleys Fired 34 | . 23 11 Largest 2 | . 2 2 Hottest 90 | . 90 60 Shots Fired 61 | . 41 20 Gun 61 | . 41 20 Cannon . | . . . Launcher . | . . . Special . | . . . Kinetic 9 | . . 9 Thermal 43 | . 41 2 Explosive . | . . . Electromagnetic 9 | . . 9 Robot Hit Streak 9 | . 7 9 Robot Miss Streak 4 | . 4 1 Penetration Max . | . . . Secondary Targets 1 | . 1 . Max Gunslinging Chain 1 | . 1 . Shots Hit Robots 41 | . 25 16 Core Hits 18 | . 12 6 Critical Kills . | . . . Critical Parts Destroyed . | . . . Critical Strikes 3 | . 2 1 Burn 3 | . 2 1 Melee Attacks . | . . . Impact . | . . . Slashing . | . . . Piercing . | . . . Sneak Attacks . | . . . Combat Hostiles . | . . . Follow-up Attacks . | . . . Damage Inflicted 482 | . 321 161 Guns 472 | . 311 161 Cannons . | . . . Explosions . | . . . Melee . | . . . Ramming 10 | . 10 . Kinetic 50 | . . 50 Thermal 336 | . 311 25 Explosive . | . . . Electromagnetic 86 | . . 86 Impact . | . . . Slashing . | . . . Piercing . | . . . Highest Corruption . | . . . Average Corruption . | . . . Corruption Purged . | . . . Corruption Blocked . | . . . Overload Shots . | . . . Overflow Damage . | . . . Projectiles . | . . . Explosions . | . . . Melee . | . . . Knockbacks 1 | . 1 . Impact 1 | . 1 . Kinetic . | . . . Secondary . | . . . Self-Inflicted Damage . | . . . Shots . | . . . Rammed 1 | . 1 . Targets Rammed 1 | . 1 . Kicked . | . . . Crushed . | . . . Highest Temperature 66 | . 66 . Average Temperature 18 | . 18 . Received Heat Transfer 162 | . 66 96 Siege Activations . | . . . Martial Activations . | . . . Shielding Activations . | . . . Robots Disrupted . | . . . Combat Hostiles . | . . . Robots Corrupted . | . . . Combat Hostiles . | . . . Parts Fried . | . . . Impact Corruptions . | . . . Robots Melted . | . . . Combat Hostiles . | . . . Parts Melted 6 | . 6 . Heat Transferred 1114 | . 966 148 Parts Sabotaged . | . . . Parts Stolen . | . . . Parts Stripped . | . . . Power Chain Reactions . | . . . Alert | -11 -10 -10 ------- Run | Yrd Mat Sub Maximum Alert Level . | . . . Low Security (%) 100 | 100 100 . Level 1 . | . . . Level 2 . | . . . Level 3 . | . . . Level 4 . | . . . Level 5 . | . . . High Security . | . . . Max Security . | . . . Peak Influence 141 | . 141 . Initial . | . . . Average 21 | . 27 . Influence Increases 220 | . 220 . Destroy 0b10 Robot/C 140 | . 140 . Destroy 0b10 Robot/NC 5 | . 5 . Destroy Leader 42 | . 42 . Successful Hack 2 | . 2 . Destroy Structure 1 | . 1 . Lose Combat Pursuer 30 | . 30 . Influence Decreases 220 | . 89 131 Entered New Map 63 | . . 63 Time Decay 147 | . 79 68 Lost Part 10 | . 10 . Squads Dispatched 3 | . 3 . Investigation 2 | . 2 . Extermination . | . . . Reinforcement 1 | . 1 . Assault . | . . . Garrison . | . . . Intercept . | . . . Searches Triggered . | . . . Construction Impeded . | . . . Haulers Reinforced . | . . . Active Scanning Responses . | . . . Cargo Convoy Interrupts . | . . . Stealth | -11 -10 -10 --------- Run | Yrd Mat Sub Distress Signals . | . . . Communications Jammed . | . . . Distress Signals . | . . . Times Spotted 16 | . 11 5 Peak Tracking Total 5 | . 5 3 Tactical Retreats 1 | . 1 . Traps | -11 -10 -10 ------- Run | Yrd Mat Sub Traps Triggered 1 | . 1 . Indirectly . | . . . Trap Hack Attempts . | . . . Triggered . | . . . Disarmed . | . . . Reprogrammed . | . . . Reused . | . . . Traps Extracted . | . . . Installed . | . . . Triggered . | . . . Machines | -11 -10 -10 ---------- Run | Yrd Mat Sub Machines Disabled . | . . . Max in Single Turn . | . . . Machines Repaired . | . . . Machines Dismantled . | . . . Machines Sabotaged . | . . . Overloaded Fab Kills . | . . . Hacking | -11 -10 -10 --------- Run | Yrd Mat Sub Machines Accessed 1 | . 1 . Terminals 1 | . 1 . Fabricators . | . . . Repair Stations . | . . . Recycling Units . | . . . Scanalyzers . | . . . Garrison Access . | . . . Total Hacks 3 | . 3 . Successful 3 | . 3 . Failed . | . . . Catastrophic . | . . . Database Lockouts . | . . . Manual . | . . . Terminals 3 | . 3 . Fabricators . | . . . Repair Stations . | . . . Recycling Units . | . . . Scanalyzers . | . . . Garrison Access . | . . . Terminal Hacks 3 | . 3 . Record 3 | . 3 . Fabricator Hacks . | . . . Repair Station Hacks . | . . . Recycling Unit Hacks . | . . . Scanalyzer . | . . . Garrison Access Hacks . | . . . Unauthorized Hacks . | . . . Terminals . | . . . Fabricators . | . . . Repair Stations . | . . . Recycling Units . | . . . Scanalyzers . | . . . Garrison Access . | . . . Data Cores Recovered . | . . . Used . | . . . Hacking Detections 1 | . 1 . Full Trace Events 1 | . 1 . Feedback Events . | . . . Feedback Blocked . | . . . Robot Schematics Acquired . | . . . Robots Built . | . . . Authchips . | . . . Time . | . . . Total Robot Build Rating . | . . . Part Schematics Acquired . | . . . Parts Built . | . . . Authchips . | . . . Time . | . . . Total Part Build Rating . | . . . Parts Repaired . | . . . Time . | . . . Parts Recycled . | . . . Recycled Matter . | . . . Retrieved Matter . | . . . Retrieved Components . | . . . Parts Scanalyzed . | . . . Part Schematics Acquired . | . . . Parts Damaged . | . . . Bothacking | -11 -10 -10 ------------ Run | Yrd Mat Sub Used RIF Installer . | . . . Robots Hacked . | . . . Non-combat . | . . . Combat . | . . . Robot Hacks Applied . | . . . Relay Couplers Released . | . . . Fabnet Peak Effective % . | . . . Robots Rewired . | . . . Allies Hacked . | . . . Hacks Repelled . | . . . Allies | -11 -10 -10 -------- Run | Yrd Mat Sub Total Allies . | . . . Largest Group . | . . . Highest-Rated Group . | . . . Highest-Rated Ally . | . . . Total Orders . | . . . Ally Attacks . | . . . Total Damage . | . . . Kills . | . . . Allies Corrupted . | . . . Allies Melted . | . . . Intel | -11 -10 -10 ------- Run | Yrd Mat Sub Active Infowar (turns) . | . . . Robot Analysis Total . | . . . Derelict Logs Recovered . | . . . Drone Launches . | . . . Drone Recoveries . | . . . Exploration | -11 -10 -10 ------------- Run | Yrd Mat Sub Turns Passed 837 | 73 260 504 Spaces Moved 246 | 39 62 145 Core 5 | 5 . . Treads 229 | 34 62 133 Legs 12 | . . 12 Wheels . | . . . Hover . | . . . Flight . | . . . Fastest Speed 50 | 50 160 320 Average Speed 286 | 145 286 325 Slowest Speed 610 | 160 320 610 Overloaded Moves . | . . . Propulsion Burnouts . | . . . Robots Hopped . | . . . Potential Cave-ins . | . . . Cave-ins Triggered . | . . . Exploration Rate (%) 10 | 4 15 12 Regions Visited 2 Branch Regions 1 Pre-discovered Areas . | . . . Known Exits Taken . | . . . Unknown Exits Taken 2 | 1 1 . Scrap Searched . | . . . Spaces Dug . | . . . Terrain Destroyed . | . . . Melee . | . . . Projectile . | . . . AOE . | . . . Terrain Rammed . | . . . Walls Destroyed . | . . . Machines Disabled . | . . . Actions | -11 -10 -10 --------- Run | Yrd Mat Sub Total 321 | 55 103 163 Wait 11 | 1 10 . Move 244 | 38 61 145 Hop . | . . . Pick Up 18 | 10 5 3 Fast Attach . | . . . Attach 11 | 6 1 4 Detach . | . . . Swap 1 | . 1 . Drop 1 | . 1 . Fire 34 | . 23 11 Melee . | . . . Ram . | . . . Kick . | . . . Crush 1 | . 1 . Escape Stasis . | . . . Rewire . | . . . Trap . | . . . Miscellaneous . | . . . Route ------- -11/Scrapyard -10/Materials -10/Subcaves History --------- Turn | Location | Event 12 | -11/Scrapyard | Discovered new exit (range 15) 74 | -11/Scrapyard | Entered Materials 302 | -10/Materials | Build established: Mutant 317 | -10/Materials | Discovered new exit (range 6) 334 | -10/Materials | Entered Subcaves 618 | -10/Subcaves | Shifting Twisted Machinery released Piercing Trap 794 | -10/Subcaves | A Subdweller sparked back to life 794 | -10/Subcaves | A Subdweller sparked back to life 820 | -10/Subcaves | Core integrity fell below 50% 830 | -10/Subcaves | Core integrity fell below 20% 838 | -10/Subcaves | Destroyed by U9-6UI(R) with Subdweller Beam Cannon Last Messages --------------- 00634_ WT-TI7(R) destroyed. 00635_ Subatomizers dissect the Sub. Machine Gun. 00662_ Acquired 51 matter. 00668_ Acquired Sub. Machine Gun. 00671_ Subatomizers dissect the Sub. Power Source. 00673_ Acquired Sub. Power Source. 00782_ Lgt. Treads destroyed. 00786_ Heat Sink destroyed. 00790_ Lgt. Treads destroyed. 00790_ R2-K5W(R) destroyed. 00794_ U9-6UI(R) creaks and sparks as it begins to move. 00794_ 0X-D5Z(R) creaks and sparks as it begins to move. 00799_ Acquired Sub. Power Source. 00800_ Acquired 46 matter. 00803_ Lgt. Assault Rifle destroyed. 00803_ EM Pulse Gun destroyed. 00815_ Ion Engine destroyed. 00819_ Subatomizers dissect the Corrupted Sub. Machine Gun. 00823_ JC-DSQ(u) tweaks Twisted Machinery. 00834_ Aluminum Leg destroyed. Map ----- +----------------------------------------------------+ | ?????????????????????????????????????????????????? | | ?????????????????????????????????????????????????? | | ?????????????????????????????????????????????????? | | ?????????????????????????????????????????????????? | | ?????????????????????????????????????????????????? | | ?????????????????????????????????????????????????? | | ??????????????#####??????????????????????????????? | | ??????????##### # ???????????????????????????????? | | ?????????## #######????????????????????????? | | ?????????? ## # # # #????????????????????????? | | ?""####?### ### ##???????????????????????? | | """"" ## #### ## #???????????????????????? | | "" # ## #### "" ????????????????????? | | &""## & #? # #" ""??????????????????? | | "???## & ###?##? ""??????????????????? | | ??????# #### # ##?????"" ??????????????????? | | ????????######### #?????? ??????????????????? | | ??????#???## ## ##?????????????????????????? | | ??????# ?## ## ###??????????????????????? | | ??????#"## ### ""##?????????????????????? | | ??????#"" #### """ ?????????????????????? | | ??????#" ##?# " ??????????????????????? | | ??????## ##??# ??????????????????????? | | ???????# ## #???# #??????????????????????? | | ???????#?## #????# #??????????????????????? | | ?????????# ##???# @#??????????????????????? | | ??######?# ##### ##?????????????????????? | | ?## ### ##"#;# #?????????????????????? | | ?# ### ##RRR#?????????????????????? | | ?## ### #?????????????????????? | | ??##### ###& #?????????????????????? | | ?????## ! #?????????????????????? | | ????## "" &[& #?????????????????????? | | ????# """" ##?????????????????????? | | ????## """" #??????????????????????? | | ###?## ##""" ##?????????????????????? | | # ## ###### #?????????????????????? | | # # "" #????#" #??######?????????????? | | ## & "# ##????#""##?# ##????????????? | | ?# " "&#####?????# ""## #????????????? | | ?# #???####### ## #?????????????? | | ?# " #??## # #??????????????? | | ## ###?## #???????????????? | | # # ### #???????????????? | | # ### ## ### #????????????? | | # ### #### #?????? ????????????? | | #### #?## #??????????????????????? | | ##??### ## #??????????????????????? | | #?????# ### "##?????????????????????? | | ### #????# ## "#?????????????????????? | +----------------------------------------------------+ Best States ------------- Heat Dissipation 35 Energy Generation 10 Energy Capacity 250 Matter Stores 233 Matter Capacity 300 Sight Range 16 Terrain Scan Density 10 Evasion (%) 40 Recoil Reduction 2 Item Schematics ----------------- None Robot Schematics ------------------ None Fabricated ------------ Nothing Repaired ---------- Nothing Alien Tech Used ----------------- None Achievements -------------- None Challenges ------------ None Game ------ Seed DerelictChargeLance Manual? 0 Play Time 00:04:56 Cumulative 5.5 hours Start 2025.09.16 @ 13:21:57 End 2025.09.16 @ 13:26:11 Sessions 1 Manual Loads 0 Difficulty Rogue Special Mode None Game No. 24 Rogue 21 Adventurer 3 Explorer 0 Win Type - Total 0 Types 0/0/0/0/0/0/0/0/0/0 Lore% 11 Gallery% 12 Achievement% 12 Wizard Run 0 Options --------- Layout 0 ASCII 0 Keyboard 0 Movement Mouse Keybinds 0 Fullscreen 2 Font 24/Smallcaps Map View 38x25 Zoom Use 97% Tactical HUD 1 Map Filters NONE Filters NONE Steam 1 RUN: a58f8c51-0a33-4ea8-86e7-71506cdca069